fUSD/lending_fUSD_20260125
["ID","MTS","AMOUNT","RATE_DAILY","PERIOD"]
[403322074,1769299350713,150.0,0.00019658,120]
[403322089,1769299530134,-155.03186657,0.00015103,2]
[403322090,1769299530154,-52.83749956,0.00015107,2]
[403322096,1769299649119,-197.16250044,0.00015107,2]
[403322097,1769299649139,-252.87642657,0.00015112,2]
[403322139,1769299831392,-300.0,0.00015012,2]
[403322140,1769299831401,-143.16552937,0.00015012,2]
[403322141,1769299831414,-51.83447063,0.00015012,2]
[403322142,1769299831424,-810.69017621,0.00015012,2]
[403322143,1769299831437,-364.72373208,0.00015012,2]
[403322144,1769299831527,-24.58609171,0.00015012,2]
[403322145,1769299831537,-260.53594415,0.00015013,2]
[403322146,1769299831547,-1311.95829592,0.00015013,2]
[403322147,1769299831558,-552.02375502,0.00015013,2]
[403322150,1769299831596,-1761.26,0.00015013,2]
[403322151,1769299831607,-685.93410249,0.00015013,2]
[403322154,1769299831646,-29267.47962426,0.00015013,2]
[403322156,1769299831657,-2279.85668093,0.00015013,2]
[403322158,1769299831667,-4452.66369481,0.00015013,2]
[403322177,1769299838143,-2878.12978853,0.00015013,2]
[403322182,1769299838164,-1538.66320084,0.00015013,2]
[403322186,1769299838175,-2563.67726824,0.00015013,2]
[403322190,1769299838186,-8942.15576679,0.00015013,2]
[403322193,1769299838197,-2339.21284015,0.00015013,2]
[403322205,1769299838263,-108445.72887942,0.00015013,2]
[403322207,1769299838275,-696.6099996,0.00015013,2]
[403322209,1769299838287,-376599.273903,0.00015013,2]
[403322211,1769299838296,-156.99474169,0.0001511,2]
[403322213,1769299838306,-500.0,0.0001511,2]
[403322215,1769299838316,-456.87367007,0.0001511,2]
[403322217,1769299838325,-500.0,0.0001511,2]
[403322219,1769299838335,-500.0,0.0001511,2]
[403322221,1769299838345,-500.0,0.0001511,2]
[403322223,1769299838355,-500.0,0.0001511,2]
[403322226,1769299838365,-500.0,0.0001511,2]
[403322227,1769299838374,-500.0,0.0001511,2]
[403322229,1769299838384,-500.0,0.0001511,2]
[403322232,1769299838394,-500.0,0.0001511,2]
[403322234,1769299838403,-500.0,0.0001511,2]
[403322236,1769299838412,-500.0,0.0001511,2]
[403322238,1769299838421,-500.0,0.0001511,2]
[403322240,1769299838431,-500.0,0.0001511,2]
[403322241,1769299838440,-500.0,0.0001511,2]
[403322243,1769299838450,-150.0,0.0001511,2]
[403322245,1769299838459,-500.0,0.0001511,2]
[403322247,1769299838469,-500.0,0.0001511,2]
[403322249,1769299838479,-500.0,0.0001511,2]
[403322252,1769299838489,-500.0,0.0001511,2]
[403322254,1769299838498,-500.0,0.0001511,2]
[403322255,1769299838508,-500.0,0.0001511,2]
[403322258,1769299838518,-500.0,0.0001511,2]
[403322260,1769299838527,-500.0,0.0001511,2]
[403322261,1769299838537,-500.0,0.0001511,2]
[403322263,1769299838546,-500.0,0.0001511,2]
[403322265,1769299838555,-500.0,0.0001511,2]
[403322267,1769299838564,-500.0,0.0001511,2]
[403322270,1769299838574,-500.0,0.0001511,2]
[403322272,1769299838584,-500.0,0.0001511,2]
[403322274,1769299838593,-500.0,0.0001511,2]
[403322276,1769299838602,-500.0,0.0001511,2]
[403322278,1769299838611,-500.0,0.0001511,2]
[403322280,1769299838620,-500.0,0.0001511,2]
[403322282,1769299838630,-500.0,0.0001511,2]
[403322284,1769299838640,-500.0,0.0001511,2]
[403322286,1769299838650,-500.0,0.0001511,2]
[403322288,1769299838659,-500.0,0.0001511,2]
[403322289,1769299838668,-500.0,0.0001511,2]
[403322291,1769299838679,-500.0,0.0001511,2]
[403322294,1769299838689,-500.0,0.0001511,2]
[403322296,1769299838698,-477.49458245,0.0001511,2]
[403322297,1769299838707,-500.0,0.0001511,2]
[403322299,1769299838718,-500.0,0.0001511,2]
[403322301,1769299838727,-500.0,0.0001511,2]
[403322303,1769299838736,-500.0,0.00015112,2]
[403322305,1769299838746,-167.46,0.00015203,3]
[403322307,1769299838755,-151.0,0.00015204,2]
[403322309,1769299838765,-151.0,0.00015204,2]
[403322311,1769299838775,-151.0,0.00015204,2]
[403322313,1769299838784,-151.0,0.00015204,2]
[403322316,1769299838794,-151.0,0.00015204,2]
[403322317,1769299838804,-151.0,0.00015204,2]
[403322320,1769299838813,-151.0,0.00015204,2]
[403322321,1769299838822,-151.0,0.00015204,2]
[403322324,1769299838832,-169.59183395,0.00015204,2]
[403322325,1769299838842,-389.20062135,0.00015212,2]
[403322327,1769299838851,-274.05667704,0.00015212,2]
[403322329,1769299838861,-500.0,0.00015212,2]
[403322331,1769299838871,-478.55538376,0.00015212,2]
[403322334,1769299838881,-500.0,0.00015212,2]
[403322336,1769299838891,-500.0,0.00015212,2]
[403322338,1769299838900,-254.61519403,0.00015212,2]
[403322339,1769299838911,-500.0,0.00015413,2]
[403322342,1769299838921,-509.89335686,0.00015413,2]
[403322343,1769299838931,-500.0,0.00015413,2]
[403322346,1769299838941,-500.0,0.00015413,2]
[403322348,1769299838951,-319.34433213,0.00015413,2]
[403322350,1769299838961,-500.0,0.00016438,2]
[403322352,1769299838970,-202.10427449,0.00016438,2]
[403322354,1769299838980,-300.0,0.00016511,2]
[403322356,1769299838990,-166.66,0.00016568,2]
[403322358,1769299838999,-1500.0,0.00016655,2]
[403322360,1769299839009,-789.34,0.00016676,2]
[403322362,1769299839019,-166.33,0.00016712,2]
[403322364,1769299839029,-612.72,0.00016766,2]
[403322366,1769299839038,-172.72,0.00016848,2]
[403322368,1769299839047,-166.66,0.00016917,2]
[403322370,1769299839057,-562.96,0.00016922,5]
[403322372,1769299839066,-9430.75,0.00016922,2]
[403322374,1769299839076,-150.99,0.00016922,2]
[403322376,1769299839085,-5476.37,0.00016922,2]
[403322378,1769299839095,-1247.68,0.00016922,2]
[403322380,1769299839104,-250.0,0.00017,2]
[403322382,1769299839114,-313.87,0.00017099,2]
[403322384,1769299839123,-250.0,0.00017099,2]
[403322386,1769299839132,-250.0,0.00017099,2]
[403322388,1769299839141,-500.0,0.00017099,2]
[403322390,1769299839151,-500.0,0.00017099,2]
[403322392,1769299839159,-500.0,0.00017099,2]
[403322394,1769299839169,-500.0,0.00017099,2]
[403322396,1769299839178,-500.0,0.00017099,2]
[403322398,1769299839187,-500.0,0.00017099,2]
[403322400,1769299839196,-151.0,0.00017099,2]
[403322403,1769299839206,-151.0,0.00017099,2]
[403322405,1769299839215,-151.0,0.00017099,2]
[403322408,1769299839225,-500.0,0.00017099,2]
[403322410,1769299839234,-500.0,0.00017099,2]
[403322412,1769299839243,-500.0,0.00017099,2]
[403322414,1769299839252,-500.0,0.00017099,2]
[403322416,1769299839261,-151.0,0.00017099,2]
[403322418,1769299839271,-151.0,0.00017099,2]
[403322420,1769299839280,-151.0,0.00017099,2]
[403322422,1769299839290,-151.0,0.00017099,2]
[403322424,1769299839299,-151.0,0.00017099,2]
[403322425,1769299839308,-151.0,0.00017099,2]
[403322428,1769299839318,-151.0,0.00017099,2]
[403322430,1769299839327,-151.0,0.00017099,2]
[403322432,1769299839336,-166.66,0.00017266,2]
[403322434,1769299839347,-313.87,0.00017373,2]
[403322436,1769299839356,-150.0,0.000174,2]
[403322438,1769299839365,-1214.997,0.000175,2]
[403322440,1769299839374,-1067.14,0.00017505,2]
[403322442,1769299839384,-166.66,0.00017614,2]
[403322444,1769299839393,-313.87,0.00017647,2]
[403322446,1769299839402,-500.0,0.00017699,2]
[403322448,1769299839411,-150.0,0.00017699,2]
[403322450,1769299839421,-150.0,0.00017699,2]
[403322452,1769299839430,-150.0,0.00017699,2]
[403322454,1769299839439,-150.0,0.00017699,2]
[403322456,1769299839449,-150.0,0.00017699,2]
[403322458,1769299839457,-150.0,0.00017699,2]
[403322460,1769299839467,-916.0,0.00017711,2]
[403322462,1769299839476,-1203.0,0.00017711,2]
[403322464,1769299839486,-2442.0,0.00017711,2]
[403322466,1769299839496,-4830.0,0.00017711,2]
[403322468,1769299839505,-6568.0,0.00017711,2]
[403322470,1769299839516,-150.0,0.00017726,2]
[403322472,1769299839526,-179.67,0.00017735,2]
[403322474,1769299839535,-500.0,0.00017754,2]
[403322476,1769299839544,-150.0,0.00017754,2]
[403322478,1769299839552,-200.0,0.00017754,2]
[403322480,1769299839561,-500.0,0.00017809,2]
[403322482,1769299839571,-150.0,0.00017809,2]
[403322484,1769299839580,-150.0,0.00017863,2]
[403322486,1769299839589,-412.1678,0.000179,2]
[403322488,1769299839599,-3659.58790205,0.000179,2]
[403322490,1769299839608,-634.22708586,0.000179,2]
[403322492,1769299839617,-531.0,0.000179,2]
[403322494,1769299839626,-216.72795984,0.00017918,2]
[403322496,1769299839636,-313.87,0.00017921,2]
[403322498,1769299839649,-166.66,0.00017963,2]
[403322500,1769299839660,-783.8745633,0.00017997,2]
[403322502,1769299839669,-710.3418492,0.00017997,2]
[403322504,1769299839681,-160.475,0.00017999,2]
[403322506,1769299839690,-300.0,0.00017999,2]
[403322508,1769299839699,-300.0,0.00017999,2]
[403322510,1769299839709,-500.0,0.00017999,2]
[403322512,1769299839719,-500.0,0.00017999,3]
[403322514,1769299839729,-496.56099917,0.00017999,4]
[403322516,1769299839738,-300.0,0.00017999,2]
[403322518,1769299839747,-300.0,0.00017999,2]
[403322520,1769299839756,-300.0,0.00017999,2]
[403322523,1769299839770,-68914.4449263,0.00018,2]
[403322733,1769299841916,-545862.62104506,0.00018,2]
[403322736,1769299841927,-860.1123645,0.00018,2]
[403322934,1769299843752,-288.35035178,0.00018,2]
[403322945,1769299843851,-3458.27221626,0.00018,2]
[403322947,1769299843862,-325.58015431,0.00018,2]
[403322949,1769299843873,-563.44083139,0.00018,2]
[403322951,1769299843884,-887.1555738,0.00018,2]
[403322957,1769299843925,-263.95605343,0.00018,2]
[403322976,1769299844093,-23.09659635,0.00018,2]
[403323113,1769299845569,-17932.76489416,0.00018,2]
[403323118,1769299845604,-1839.00195403,0.00018,2]
[403323146,1769299845862,-821.42562322,0.00018,2]
[403327456,1769300010674,150.0,0.00020498,120]
[403327529,1769300236223,878.4354113,0.000176,30]
[403327530,1769300236293,500.0,0.000176,30]
[403327531,1769300236500,500.0,0.000176,30]
[403327533,1769300239813,500.0,0.000176,30]
[403327534,1769300240746,500.0,0.000176,30]
[403327537,1769300246259,500.0,0.000176,30]
[403327538,1769300247067,500.0,0.000176,30]
[403327540,1769300249594,500.0,0.000176,30]
[403327541,1769300250421,500.0,0.000176,30]
[403327542,1769300250874,500.0,0.000176,30]
[403327652,1769300540382,500.0,0.000176,30]
[403327654,1769300548793,577.59780779,0.000176,30]
[403327743,1769300947254,-1200.0,0.00012999,2]
[403327744,1769300947274,-300.0,0.00012999,2]
[403327745,1769300947296,-300.0,0.00012999,2]
[403327746,1769300947318,-195.0,0.00013,2]
[403327747,1769300947339,-907.89617113,0.00013,2]
[403327748,1769300947359,-892.04438719,0.00013,2]
[403327749,1769300947380,-571.9125212,0.00013,2]
[403327750,1769300947401,-614.67937244,0.00013,2]
[403327751,1769300947421,-500.0,0.00013,2]
[403327752,1769300947441,-662.07567461,0.00013,2]
[403327806,1769301031591,-229.96211439,0.00013,2]
[403327807,1769301031601,-971.998,0.00014713,2]
[403327808,1769301031610,-635.35213991,0.00014812,2]
[403327809,1769301031619,-150.0,0.00014812,2]
[403327810,1769301031629,-269645.57907805,0.00014813,2]
[403327811,1769301031669,-4812.93284303,0.00014813,2]
[403327812,1769301031681,-468.22940156,0.00014813,2]
[403327813,1769301031691,-499.50294632,0.00014813,2]
[403327814,1769301031702,-692.44056672,0.00014813,2]
[403327815,1769301031713,-8108.35026846,0.00014813,2]
[403327831,1769301037731,-1862.90817245,0.00014813,2]
[403327832,1769301037844,-8608.54535819,0.00014813,2]
[403327833,1769301037856,-4000.0,0.00014813,2]
[403327834,1769301037950,-694.84877467,0.00014813,2]
[403328078,1769301040467,-545862.62104506,0.00014813,2]
[403328084,1769301040520,-90499.99999995,0.00014813,2]
[403328087,1769301040581,-277.11782814,0.00014813,2]
[403328088,1769301040593,-286.96410004,0.00014813,2]
[403328608,1769301045738,-1137.2501243,0.00014813,2]
[403328648,1769301046118,-4639.57630477,0.00014813,2]
[403330775,1769301211327,903.098,0.000226,120]
[403330776,1769301448763,393.35517582,0.000176,30]
[403330779,1769301539839,5152.77,0.000142,10]
[403330780,1769301551971,5152.76,0.000103,2]
[403330826,1769302151147,-257.0,0.00013047,2]
[403330827,1769302151168,-250.0,0.00013047,2]
[403330828,1769302151189,-1943.0,0.00013047,2]
[403330841,1769302237306,-1307.82149326,0.00013047,2]
[403330842,1769302237315,-138.90800674,0.00013047,2]
[403330845,1769302237330,-5200.03199326,0.00013047,2]
[403330847,1769302237340,-1200.0,0.00013809,2]
[403330849,1769302237349,-300.0,0.0001381,2]
[403330851,1769302237358,-300.0,0.0001381,2]
[403330853,1769302237367,-300.0,0.0001381,2]
[403330855,1769302237376,-2500.0,0.00014352,2]
[403330857,1769302237385,-1668.98788426,0.00014352,2]
[403330859,1769302237394,-600.0,0.00014352,2]
[403330861,1769302237404,-600.0,0.00014352,2]
[403330863,1769302237413,-600.0,0.00014352,2]
[403330865,1769302237422,-858.38434281,0.0001451,2]
[403330867,1769302237432,-500.0,0.00014511,2]
[403330869,1769302237441,-500.0,0.00014511,2]
[403330871,1769302237451,-500.0,0.00014511,2]
[403330873,1769302237460,-500.0,0.00014511,2]
[403330875,1769302237470,-500.0,0.00014511,2]
[403330877,1769302237479,-500.0,0.00014511,2]
[403330880,1769302237488,-500.0,0.00014511,2]
[403330882,1769302237497,-622.12035628,0.00014511,2]
[403330885,1769302237506,-500.0,0.00014511,2]
[403330887,1769302237515,-30.08370489,0.00014511,2]
[403330889,1769302237527,-469.91629511,0.00014511,2]
[403330891,1769302237536,-500.0,0.00014511,2]
[403330892,1769302237546,-25.97079433,0.00014511,2]
[403330893,1769302237559,-474.02920567,0.00014511,2]
[403330894,1769302237568,-500.0,0.00014511,2]
[403330895,1769302237576,-500.0,0.00014511,2]
[403330896,1769302237586,-500.0,0.00014511,2]
[403330897,1769302237595,-500.0,0.00014511,2]
[403330898,1769302237604,-126.97079433,0.00014511,2]
[403330899,1769302237640,-373.02920567,0.00014511,2]
[403330901,1769302237650,-500.0,0.00014511,2]
[403330903,1769302237659,-500.0,0.00014511,2]
[403330905,1769302237668,-500.0,0.00014511,2]
[403330907,1769302237677,-500.0,0.00014511,2]
[403330908,1769302237687,-500.0,0.00014511,2]
[403330909,1769302237696,-500.0,0.00014511,2]
[403330910,1769302237707,-500.0,0.00014511,2]
[403330911,1769302237716,-500.0,0.00014511,2]
[403330912,1769302237725,-500.0,0.00014511,2]
[403330913,1769302237734,-500.0,0.00014511,2]
[403330914,1769302237743,-500.0,0.00014511,2]
[403330915,1769302237753,-500.0,0.00014511,2]
[403330916,1769302237762,-500.0,0.00014511,2]
[403330917,1769302237771,-500.0,0.00014511,2]
[403330918,1769302237781,-500.0,0.00014511,2]
[403330919,1769302237790,-500.0,0.00014511,2]
[403330920,1769302237801,-500.0,0.00014511,2]
[403330921,1769302237810,-500.0,0.00014511,2]
[403330922,1769302237820,-5434.62369041,0.00014512,2]
[403330923,1769302237830,-500.0,0.00014598,2]
[403330924,1769302237839,-1509.82196656,0.000146,2]
[403330925,1769302237849,-464.69,0.00014604,2]
[403330926,1769302237859,-500.0,0.00014605,2]
[403330927,1769302237869,-500.0,0.00014605,2]
[403330928,1769302237878,-500.0,0.00014605,2]
[403330929,1769302237887,-500.0,0.00014605,2]
[403330930,1769302237896,-500.0,0.00014605,2]
[403330931,1769302237906,-500.0,0.00014608,2]
[403330932,1769302237915,-178.23063582,0.00014608,2]
[403330933,1769302237924,-348.44074059,0.00014608,2]
[403330934,1769302237933,-500.0,0.00014608,2]
[403330935,1769302237942,-239.64909468,0.00014608,2]
[403330936,1769302237951,-500.0,0.00014608,2]
[403330937,1769302237959,-168.48061078,0.00014608,2]
[403330938,1769302237968,-81356.98105587,0.00014609,2]
[403330939,1769302237980,-663.7357518,0.00014609,2]
[403330940,1769302237991,-374.7451931,0.00014609,2]
[403330941,1769302238003,-11260.45347406,0.00014609,2]
[403330942,1769302238014,-9412.5,0.00014609,2]
[403330943,1769302238025,-206213.53675933,0.00014609,2]
[403330944,1769302238066,-469.5,0.00014609,2]
[403330945,1769302238077,-18463.94542093,0.00014609,2]
[403330989,1769302238570,-6734.89884,0.00014609,2]
[403330992,1769302238582,-299.49999525,0.00014609,2]
[403331002,1769302238668,-576.55739814,0.00014609,2]
[403331215,1769302240789,-8779.80959135,0.00014609,2]
[403331231,1769302240919,-1415.14109648,0.00014609,2]
[403331682,1769302245313,-472.60107378,0.00014609,2]
[403331743,1769302245907,-260.34861082,0.00014609,2]
[403331750,1769302245963,-552.8491213,0.00014609,2]
[403331758,1769302246020,-784.0,0.00014609,2]
[403332559,1769302363665,757.43261589,0.000135,3]
[403332606,1769302895084,285.70443904,0.0001034,2]
[403332607,1769302895403,4561.54556096,0.0001034,2]
[403332608,1769302895427,3292.13466562,0.0001034,2]
[403332609,1769302895637,1248.69114802,0.0001034,2]
[403332635,1769303146313,-157.87584785,0.00014408,2]
[403332636,1769303232227,-342.12415215,0.00014408,2]
[403332637,1769303232246,-108.0473272,0.00014507,2]
[403332666,1769303431832,-500.0,0.00014308,2]
[403332668,1769303431841,-150.0,0.00014507,2]
[403332669,1769303431851,-300.0,0.00014507,2]
[403332671,1769303431860,-777.598,0.00014508,2]
[403332673,1769303431869,-923.71300875,0.00014508,2]
[403332675,1769303431878,-145.01899125,0.00014508,2]
[403332680,1769303431921,-354.98100875,0.00014508,2]
[403332681,1769303431931,-406.60754055,0.00014508,2]
[403332682,1769303431941,-93.39245945,0.00014508,2]
[403332683,1769303431951,-500.0,0.00014508,2]
[403332684,1769303431960,-500.0,0.00014508,2]
[403332685,1769303431969,-500.0,0.00014508,2]
[403332686,1769303431978,-500.0,0.00014508,2]
[403332687,1769303431988,-500.0,0.00014508,2]
[403332688,1769303431998,-500.0,0.00014508,2]
[403332689,1769303432007,-500.0,0.00014508,2]
[403332690,1769303432017,-262.21203563,0.00014508,2]
[403332691,1769303432026,-500.0,0.00014508,2]
[403332692,1769303432035,-1557.11500022,0.00014511,2]
[403332693,1769303432044,-166.66,0.00014527,2]
[403332694,1769303432054,-253.49150774,0.00014558,2]
[403332695,1769303432063,-500.0,0.00014594,2]
[403332696,1769303432072,-2050.90774503,0.00014605,2]
[403332697,1769303432086,-317.95502581,0.00014605,2]
[403332698,1769303432097,-735.61490676,0.00014605,2]
[403332699,1769303432107,-2131.0255477,0.00014605,2]
[403332700,1769303432116,-313.85693662,0.00014609,2]
[403332710,1769303432202,-290.68454295,0.00014609,2]
[403332713,1769303432212,-500.0,0.00014609,2]
[403332716,1769303432221,-189.73773101,0.00014609,2]
[403332719,1769303432233,-310.26226899,0.00014609,2]
[403332721,1769303432242,-500.0,0.00014609,2]
[403332723,1769303432251,-500.0,0.00014609,2]
[403332725,1769303432260,-165.80873071,0.00014609,2]
[403332727,1769303432272,-334.19126929,0.00014609,2]
[403332729,1769303432280,-40.80873074,0.00014609,2]
[403332731,1769303432291,-459.19126926,0.00014609,2]
[403332733,1769303432300,-500.0,0.00014609,2]
[403332735,1769303432309,-500.0,0.00014609,2]
[403332737,1769303432318,-500.0,0.00014609,2]
[403332739,1769303432327,-500.0,0.00014609,2]
[403332741,1769303432336,-500.0,0.00014609,2]
[403332744,1769303432346,-500.0,0.00014609,2]
[403332746,1769303432355,-200.0,0.00014609,2]
[403332748,1769303432364,-500.0,0.00014609,2]
[403332750,1769303432373,-500.0,0.00014609,2]
[403332752,1769303432382,-533.57,0.00014697,2]
[403332772,1769303432660,-161.12,0.00014721,2]
[403332773,1769303432703,-166.66,0.00014833,2]
[403332774,1769303432713,-542.89957297,0.00015013,2]
[403332775,1769303432723,-500.0,0.00015013,2]
[403332776,1769303432732,-500.0,0.00015013,2]
[403332777,1769303432742,-500.0,0.00015013,2]
[403332778,1769303432752,-391.13615638,0.00015013,2]
[403332779,1769303432761,-500.0,0.00015013,2]
[403332780,1769303432771,-500.0,0.00015013,2]
[403332781,1769303432780,-500.0,0.00015013,2]
[403332782,1769303432789,-282.39883128,0.00015013,2]
[403332784,1769303432798,-500.0,0.00015013,2]
[403332786,1769303432807,-629.86192957,0.00015013,2]
[403332788,1769303432816,-371.75,0.00015013,2]
[403332790,1769303432825,-500.0,0.00015013,2]
[403332792,1769303432835,-500.0,0.00015013,2]
[403332794,1769303432844,-500.0,0.00015013,2]
[403332796,1769303432853,-500.0,0.00015013,2]
[403332798,1769303432862,-166.66,0.00015139,2]
[403332800,1769303432871,-80740.10117224,0.00015159,2]
[403332801,1769303432881,-4891.16132136,0.00015265,2]
[403332803,1769303432890,-371.75,0.00015287,2]
[403332805,1769303432900,-370.89,0.00015365,2]
[403332808,1769303432909,-166.66,0.00015445,2]
[403332809,1769303432919,-172.72,0.00015516,2]
[403332811,1769303432929,-151.0,0.00015538,2]
[403332813,1769303432939,-4891.16132131,0.00015558,2]
[403332815,1769303432948,-371.75,0.00015561,2]
[403332818,1769303432958,-200.0,0.00015582,2]
[403332820,1769303432968,-200.0,0.00015622,2]
[403332822,1769303432977,-255.0,0.00015624,2]
[403332824,1769303432986,-250.0,0.00015739,2]
[403332826,1769303432995,-166.66,0.00015751,2]
[403332828,1769303433004,-371.75,0.00015835,2]
[403332830,1769303433013,-253.35,0.00015836,2]
[403332831,1769303433022,-2500.0,0.00015849,2]
[403332833,1769303433033,-197.16250044,0.00015849,2]
[403332834,1769303433042,-195.0,0.00015849,2]
[403332835,1769303433051,-4891.16132131,0.00015851,2]
[403332836,1769303433060,-300.0,0.00015885,2]
[403332837,1769303433070,-272.79,0.00015918,2]
[403332838,1769303433082,-292.36869297,0.00015958,2]
[403332839,1769303433092,-1605.7123503,0.00016,2]
[403332840,1769303433101,-166.66,0.00016056,2]
[403332841,1769303433110,-500.0,0.00016064,2]
[403332842,1769303433121,-500.0,0.00016064,2]
[403332843,1769303433130,-249.84105612,0.00016064,2]
[403332844,1769303433139,-500.0,0.00016064,2]
[403332845,1769303433149,-1543.4340218,0.00016076,2]
[403332846,1769303433158,-783.8745637,0.00016094,2]
[403332847,1769303433167,-371.79,0.00016109,2]
[403332848,1769303433176,-4891.16132131,0.00016143,2]
[403332849,1769303433185,-741.72332876,0.00016345,2]
[403332850,1769303433194,-4891.16132131,0.00016436,2]
[403332851,1769303433203,-1000.0,0.000166,2]
[403332852,1769303433212,-151.0,0.00016603,2]
[403332853,1769303433221,-151.0,0.00016603,2]
[403332854,1769303433230,-151.0,0.00016603,2]
[403332855,1769303433239,-151.0,0.00016603,2]
[403332856,1769303433248,-151.0,0.00016603,2]
[403332857,1769303433257,-151.0,0.00016603,2]
[403332858,1769303433266,-151.0,0.00016603,2]
[403332859,1769303433275,-151.0,0.00016603,2]
[403332860,1769303433283,-151.0,0.00016603,2]
[403332861,1769303433293,-151.0,0.00016603,2]
[403332862,1769303433302,-151.0,0.00016603,2]
[403332863,1769303433312,-253.35,0.00016627,2]
[403332864,1769303433321,-327.1160481,0.00016644,2]
[403332865,1769303433331,-1000.0,0.000167,2]
[403332866,1769303433339,-4891.16132131,0.00016729,2]
[403332867,1769303433348,-150.0,0.00016834,2]
[403332868,1769303433358,-1000.0,0.000169,2]
[403332869,1769303433367,-184.0,0.00016915,2]
[403332870,1769303433376,-1269.0,0.00016915,2]
[403332871,1769303433385,-1203.0,0.00016915,2]
[403332872,1769303433394,-916.0,0.00016915,2]
[403332873,1769303433403,-250.0,0.00017,2]
[403332874,1769303433412,-4891.16132131,0.00017022,2]
[403332875,1769303433421,-154.5628423,0.00017255,2]
[403332876,1769303433430,-370.89,0.00017286,2]
[403332877,1769303433439,-535.0,0.00017297,2]
[403332878,1769303433449,-1000.0,0.000173,2]
[403332879,1769303433458,-4891.16132131,0.00017314,2]
[403332880,1769303433467,-2442.0,0.00017332,2]
[403332881,1769303433476,-6568.0,0.00017332,2]
[403332882,1769303433486,-150.0,0.00017376,5]
[403332883,1769303433496,-150.47684638,0.00017376,5]
[403332884,1769303433505,-165.47,0.00017385,2]
[403332885,1769303433514,-253.35,0.00017419,2]
[403332886,1769303433523,-1000.0,0.000176,2]
[403332887,1769303433532,-4891.16132131,0.00017607,2]
[403332888,1769303433542,-168.0,0.00017614,2]
[403332889,1769303433551,-150.0,0.00017644,2]
[403332890,1769303433560,-213.0,0.00017681,2]
[403332891,1769303433570,-200.0,0.00017681,2]
[403332892,1769303433579,-200.0,0.00017681,2]
[403332893,1769303433587,-171.0,0.00017681,2]
[403332894,1769303433596,-150.0,0.00017681,2]
[403332895,1769303433605,-150.039,0.00017681,2]
[403332896,1769303433614,-210.554,0.00017681,2]
[403332897,1769303433623,-150.0,0.00017681,2]
[403332898,1769303433632,-250.0,0.00017681,2]
[403332899,1769303433642,-150.139,0.00017681,2]
[403332900,1769303433651,-191.367,0.00017681,2]
[403332901,1769303433660,-164.163,0.00017681,2]
[403332902,1769303433669,-212.454,0.00017681,2]
[403332903,1769303433678,-250.0,0.00017681,2]
[403332904,1769303433687,-230.574,0.00017681,2]
[403332905,1769303433696,-170.0,0.00017681,2]
[403332906,1769303433706,-1333.0,0.00017681,2]
[403332907,1769303433715,-1408.0,0.00017681,2]
[403332908,1769303433725,-615.0,0.00017681,2]
[403332909,1769303433734,-3476.0,0.00017681,2]
[403332910,1769303433743,-1000.0,0.000178,2]
[403332911,1769303433753,-2000.0,0.000179,2]
[403332912,1769303433762,-7725.45908448,0.000179,2]
[403332913,1769303433772,-4891.16132131,0.000179,2]